fUST/lending_fUST_20241104
["ID","MTS","AMOUNT","RATE_DAILY","PERIOD"]
[341221126,1730682452133,-153.0,0.00033123,2]
[341221127,1730682452154,-160.0,0.00033417,2]
[341221128,1730682452176,-773.90452104,0.00033417,2]
[341221129,1730682452200,-1000.0,0.00033418,2]
[341221130,1730682452221,-8282.88273884,0.00033418,2]
[341221131,1730682567187,203.391385,0.00031652,2]
[341221132,1730682572145,-2994.52513358,0.00032,7]
[341221133,1730682622384,192.82079727,0.00031652,7]
[341221166,1730682632067,-153.0,0.00033123,2]
[341221167,1730682632077,-121.77259438,0.000332,2]
[341221168,1730682633767,169.473575,0.00013973,2]
[341221174,1730682638197,-9.57984078,0.000332,2]
[341221175,1730682638239,-21.64756484,0.000332,2]
[341221176,1730682638248,-153.0,0.000332,2]
[341221177,1730682638257,-315.35243516,0.00033417,2]
[341221551,1730682646166,-306.0,0.000332,2]
[341221552,1730682646177,-361.81402075,0.00033417,2]
[341221553,1730682646187,-250.83311072,0.00033418,2]
[341221554,1730682667098,245.4932361,0.00031464,2]
[341221555,1730682702791,234.2579736,0.00031935,2]
[341221556,1730682734030,151.0,0.0003,120]
[341221562,1730683540147,-197.682286,0.00028212,2]
[341221563,1730683540173,-160.0,0.00028696,3]
[341221564,1730683540199,-197.682286,0.00028896,2]
[341221565,1730683540224,-197.682286,0.00029581,2]
[341221566,1730683540248,-152.40551838,0.00029998,2]
[341221568,1730683557109,-81.59448162,0.00029998,2]
[341221569,1730683557136,-104.40547757,0.00029999,2]
[341221572,1730683635140,-1125.49273276,0.000299,2]
[341221573,1730683635162,-395.59452243,0.00029999,2]
[341221574,1730683635184,-500.0,0.00029999,2]
[341221575,1730683635204,-619.8218,0.00029999,2]
[341221576,1730683635226,-5000.0,0.00029999,2]
[341221577,1730683635246,-3543.65405285,0.0003,2]
[341221578,1730683668698,168.127304,0.00013973,2]
[341221587,1730683746123,-21078.64420256,0.0003,2]
[341221588,1730683746146,-151.0,0.0003,120]
[341221589,1730683746167,-151.0,0.0003,120]
[341221590,1730683746188,-160.0,0.0003226,4]
[341221591,1730683746211,-236.94263155,0.0003226,5]
[341221592,1730683756179,3352.26862542,0.00029999,2]
[341221593,1730683759103,-1647.73137458,0.00029999,2]
[341221719,1730683838471,-151.0,0.00032541,7]
[341221720,1730683838481,-151.0,0.00032541,7]
[341221721,1730683838491,-151.0,0.00032541,7]
[341221722,1730683838501,-151.0,0.00032541,7]
[341221723,1730683838511,-279.418398,0.00032541,7]
[341221724,1730683838520,-151.0,0.00032541,7]
[341221725,1730683838530,-279.418398,0.00032541,7]
[341221726,1730683838541,-151.0,0.00032541,7]
[341221727,1730683838550,-579.226155,0.00032541,7]
[341221728,1730683838559,-579.226155,0.00032541,7]
[341221729,1730683838569,-791.615425,0.00032541,7]
[341221730,1730683838579,-791.615425,0.00032541,7]
[341221731,1730683838589,-153.0,0.00032541,2]
[341221732,1730683838598,-153.0,0.00032541,2]
[341221733,1730683838608,-153.0,0.00032541,2]
[341221734,1730683838617,-984.8061412,0.00032776,2]
[341221735,1730683838627,-211.1299437,0.00032795,2]
[341221736,1730683838636,-211.1299437,0.00032795,2]
[341221737,1730683838645,-211.1299437,0.00032795,2]
[341221738,1730683838654,-210.6902001,0.00032795,2]
[341221739,1730683838664,-1766.20622768,0.00032875,2]
[341221740,1730683838673,-181.95119798,0.00032875,2]
[341221741,1730683838682,-500.0,0.00032876,2]
[341221742,1730683838692,-500.0,0.00032876,4]
[341221743,1730683838701,-151.0,0.00032876,7]
[341221744,1730683838710,-97.7689283,0.00032876,7]
[341221809,1730683942920,151.07634398,0.00024658,2]
[341221811,1730684168184,173.0578894,0.00013973,2]
[341221812,1730684731114,-206.9487834,0.00029989,2]
[341221813,1730684731137,-268.0111491,0.00030544,2]
[341221814,1730684731159,-161.7291528,0.00030644,61]
[341221815,1730684731181,-400.0,0.00032875,2]
[341221816,1730684731202,-888.7139786,0.00032875,2]
[341221817,1730684759100,-480.16876966,0.00032875,2]
[341221818,1730684832100,-218.05977828,0.00032776,2]
[341221819,1730684835140,-746.25798005,0.00032776,2]
[341221820,1730684835165,-714.90411557,0.00032875,2]
[341221821,1730684835185,-318.0,0.00032875,2]
[341221822,1730684835205,-151.0,0.00032876,7]
[341221823,1730684835226,-151.0,0.00032876,7]
[341221824,1730684835248,-500.0,0.00032876,4]
[341221825,1730684835268,-283.21795203,0.00032876,4]
[341221826,1730684835289,-500.0,0.00032876,4]
[341221827,1730684835310,-151.0,0.00032876,7]
[341221828,1730684835332,-151.0,0.00032876,7]
[341221829,1730684835357,-151.0,0.00032876,7]
[341221830,1730684835383,-279.101418,0.00032876,7]
[341221831,1730684835404,-648.34466409,0.00032876,4]
[341221832,1730684835425,-151.0,0.00032876,7]
[341221833,1730684835446,-151.0,0.00032876,7]
[341221834,1730684835468,-156.868832,0.00032876,7]
[341221835,1730684835496,-151.0,0.00032876,7]
[341221836,1730684835516,-151.0,0.00032876,7]
[341221837,1730684835536,-151.0,0.00032876,7]
[341221838,1730684835556,-151.0,0.00032876,7]
[341221839,1730684835577,-151.0,0.00032876,7]
[341221840,1730684835598,-151.0,0.00032876,7]
[341221841,1730684835618,-151.0,0.00032876,7]
[341221842,1730684835639,-151.0,0.00032876,7]
[341221843,1730684835660,-151.0,0.00032876,7]
[341221844,1730684835681,-156.388889,0.00032876,7]
[341221845,1730684835702,-278.362417,0.00032876,7]
[341221846,1730684835722,-151.0,0.00032876,7]
[341221847,1730684835746,-151.0,0.00032876,7]
[341221848,1730684835766,-151.0,0.00032876,7]
[341221849,1730684835791,-151.0,0.00032876,7]
[341221850,1730684835812,-151.0,0.00032876,7]
[341221851,1730684835833,-500.0,0.00032876,4]
[341221852,1730684835855,-244.00866,0.00032876,7]
[341221853,1730684835879,-233.360002,0.00032876,7]
[341221854,1730684835900,-233.360002,0.00032876,7]
[341221855,1730684835922,-233.360002,0.00032876,7]
[341221856,1730684835944,-233.360002,0.00032876,7]
[341221857,1730684835965,-233.360002,0.00032876,7]
[341221858,1730684835989,-233.360002,0.00032876,7]
[341221859,1730684836011,-233.360002,0.00032876,7]
[341221860,1730684836033,-233.360002,0.00032876,7]
[341221861,1730684836054,-233.360002,0.00032876,7]
[341221862,1730684836080,-233.360002,0.00032876,7]
[341221863,1730684836102,-233.360002,0.00032876,7]
[341221864,1730684836124,-233.360002,0.00032876,7]
[341221865,1730684836147,-11.09735441,0.00032876,7]
[341221866,1730684946792,166.781033,0.00013973,2]
[341222111,1730685043811,-53.35208552,0.00032776,2]
[341222127,1730685370356,532.0,0.00033514,30]
[341222128,1730685498226,171.511742,0.00013973,2]
[341222129,1730685956127,-627.0,0.00025204,2]
[341222130,1730685956152,-151.0,0.0003,120]
[341222131,1730685956173,-151.0,0.0003,120]
[341222132,1730685956195,-338.585077,0.00030471,2]
[341222133,1730685956216,-116.59130132,0.00031156,2]
[341222134,1730685968067,150.0,0.0002,2]
[341222135,1730685968427,150.0,0.00017,2]
[341222136,1730685968850,150.0,0.00013,2]
[341222137,1730685969234,150.0,0.0001,2]
[341222138,1730685972850,150.0,0.00018,30]
[341222139,1730685973305,150.0,0.00014,30]
[341222140,1730685973740,150.0,0.0001,30]
[341222141,1730685998272,166.444465,0.00013973,2]
[341222142,1730686025848,-150.0,0.00021,30]
[341222143,1730686025868,-150.0,0.00024,2]
[341222144,1730686025888,-150.0,0.00025,30]
[341222145,1730686025911,-150.0,0.00027,2]
[341222146,1730686025932,-150.0,0.00029,30]
[341222147,1730686025952,-150.0,0.00031,2]
[341222148,1730686025981,-221.99377568,0.00031156,2]
[341222149,1730686026006,-338.585077,0.00031841,2]
[341222150,1730686026027,-150.0,0.00032,30]
[341222151,1730686026050,-188.98327413,0.00032776,2]
[341222152,1730686026161,-368.47817372,0.00032776,2]
[341222153,1730686048150,-376.38564512,0.00032776,2]
[341222154,1730686048180,-187.18899458,0.00032776,2]
[341222155,1730686048206,-500.0,0.00032873,2]
[341222156,1730686048231,-500.0,0.00032873,5]
[341222157,1730686048259,-172.0,0.00032875,2]
[341222158,1730686048285,-358.0,0.00032875,2]
[341222159,1730686048312,-500.0,0.00032876,4]
[341222160,1730686048338,-151.0,0.00032876,7]
[341222161,1730686048361,-500.0,0.00032876,7]
[341222162,1730686048385,-189.27977,0.00032876,7]
[341222163,1730686048410,-189.27977,0.00032876,7]
[341222164,1730686048438,-189.27977,0.00032876,7]
[341222165,1730686048465,-189.27977,0.00032876,7]
[341222166,1730686048487,-189.27977,0.00032876,7]
[341222167,1730686048512,-189.27977,0.00032876,7]
[341222168,1730686048537,-189.27977,0.00032876,7]
[341222169,1730686048562,-189.27977,0.00032876,7]
[341222170,1730686048586,-189.27977,0.00032876,7]
[341222171,1730686048608,-189.27977,0.00032876,7]
[341222172,1730686048631,-189.27977,0.00032876,7]
[341222173,1730686048657,-189.27977,0.00032876,7]
[341222174,1730686048684,-189.27977,0.00032876,7]
[341222175,1730686048708,-189.27977,0.00032876,7]
[341222176,1730686048732,-189.27977,0.00032876,7]
[341222177,1730686048758,-189.27977,0.00032876,7]
[341222178,1730686048788,-189.27977,0.00032876,7]
[341222179,1730686048812,-189.27977,0.00032876,7]
[341222180,1730686048963,-189.27977,0.00032876,7]
[341222181,1730686048991,-189.279777,0.00032876,7]
[341222182,1730686049013,-151.0,0.00032876,7]
[341222183,1730686049035,-151.0,0.00032876,7]
[341222184,1730686049056,-291.06117663,0.00032876,4]
[341222185,1730686049077,-151.288754,0.00032876,7]
[341222186,1730686049099,-151.0,0.00032876,7]
[341222187,1730686049124,-151.0,0.00032876,7]
[341222188,1730686049146,-151.0,0.00032876,7]
[341222189,1730686049168,-151.0,0.00032876,7]
[341222190,1730686049196,-151.0,0.00032876,7]
[341222191,1730686049217,-151.0,0.00032876,7]
[341222192,1730686049239,-246.820542,0.00032876,7]
[341222193,1730686049265,-500.0,0.00032876,4]
[341222194,1730686049286,-154.492701,0.00032876,7]
[341222195,1730686049308,-500.0,0.00032876,4]
[341222196,1730686049329,-151.0,0.00032876,7]
[341222197,1730686049350,-152.820521,0.00032876,7]
[341222198,1730686049373,-151.0,0.00032876,7]
[341222199,1730686049395,-151.0,0.00032876,7]
[341222200,1730686049416,-151.0,0.00032876,7]
[341222201,1730686049442,-151.0,0.00032876,7]
[341222202,1730686049464,-151.0,0.00032876,7]
[341222203,1730686049486,-151.0,0.00032876,7]
[341222204,1730686049509,-151.0,0.00032876,7]
[341222205,1730686049531,-151.0,0.00032876,7]
[341222206,1730686049552,-151.0,0.00032876,7]
[341222207,1730686049574,-151.0,0.00032876,7]
[341222208,1730686049596,-151.0,0.00032876,7]
[341222209,1730686049618,-194.782665,0.00032876,7]
[341222210,1730686049639,-151.0,0.00032876,7]
[341222211,1730686049660,-153.097985,0.00032876,7]
[341222212,1730686049684,-254.025537,0.00032876,7]
[341222213,1730686049705,-254.025537,0.00032876,7]
[341222214,1730686049727,-254.025537,0.00032876,7]
[341222215,1730686049747,-151.0,0.00032876,7]
[341222216,1730686049768,-254.025537,0.00032876,7]
[341222217,1730686049788,-152.7694,0.00032876,7]
[341222218,1730686049810,-254.025537,0.00032876,7]
[341222219,1730686049833,-1.76335932,0.00032876,7]
[341222221,1730686147679,164.0,0.0003,2]
[341222222,1730686169075,-164.0,0.00031644,2]
[341222229,1730686232238,161.457437,0.00030915,2]
[341222244,1730686232447,161.457437,0.00031069,2]
[341222425,1730686490756,171.511745,0.00013973,2]
[341222426,1730686743262,181.38,0.00020186,2]
[341222427,1730686873316,4000.0,0.00020186,2]
[341222428,1730686987916,166.444465,0.00013973,2]
[341222431,1730687150148,-183.13726856,0.00030137,2]
[341222432,1730687150172,-698.97239433,0.00031945,120]
[341222433,1730687150194,-71.21511369,0.000325,10]
[341222434,1730687153096,-506.12084818,0.000325,10]
[341222436,1730687227147,-4422.66403813,0.000325,10]
[341222437,1730687227179,-152.0,0.00032775,2]
[341222438,1730687227205,-186.38083064,0.00032776,2]
[341222439,1730687227231,-967.90021932,0.00032776,2]
[341222440,1730687227257,-265.2652597,0.00032849,2]
[341222441,1730687227282,-153.0,0.00032849,2]
[341222442,1730687227307,-153.0,0.00032849,2]
[341222443,1730687227330,-153.0,0.00032849,2]
[341222444,1730687227356,-153.0,0.00032849,2]
[341222445,1730687227381,-500.0,0.00032874,2]
[341222446,1730687227406,-500.0,0.00032874,2]
[341222447,1730687227432,-515.41632243,0.00032874,2]
[341222448,1730687227456,-284.09790507,0.00032875,2]
[341222449,1730687227479,-3038.43993488,0.00032875,2]
[341222450,1730687227501,-3469.05053562,0.00032875,2]
[341222451,1730687239130,-974.89271089,0.00032875,2]
[341222452,1730687245095,-556.05675349,0.00032875,2]
[341222453,1730687245117,-504.41003457,0.00032876,4]
[341222454,1730687245138,-500.0,0.00032876,4]
[341222455,1730687245158,-301.96663085,0.00032876,4]
[341222460,1730687350112,-452.99999997,0.00023,2]
[341222461,1730687350134,-197.682286,0.00030915,2]
[341222462,1730687360097,-197.682286,0.000316,2]
[341222492,1730687440347,-197.682286,0.00032284,2]
[341222493,1730687440356,-186.38083064,0.00032776,2]
[341222494,1730687440366,-1272.96077734,0.00032875,2]
[341222495,1730687440378,-374.77059724,0.00032875,2]
[341222496,1730687440388,-198.03336915,0.00032876,4]
[341222497,1730687440398,-27.66788361,0.00032876,4]
[341222498,1730687440410,-357.28,0.00032876,4]
[341222519,1730687441293,-115.05211639,0.00032876,4]
[341222520,1730687441303,-252.78547621,0.00032876,4]
[341222521,1730687441313,-500.0,0.00032876,2]
[341222522,1730687441322,-500.0,0.00032876,4]
[341222523,1730687441333,-167.44465658,0.00032876,4]
[341222524,1730687441343,-154.36067001,0.00032876,4]
[341222525,1730687441352,-165.02550194,0.00032876,4]
[341222526,1730687442776,151.07634398,0.00024658,2]
[341222549,1730687681215,166.444465,0.00013973,2]
[341222551,1730688134890,250.0,0.00033513,30]
[341222552,1730688135334,331.0,0.00033513,30]
[341222553,1730688162017,188.71,0.00033513,30]
[341222555,1730688240532,171.511742,0.00013973,2]
[341222557,1730688347147,-546.862534,0.00031107,2]
[341222558,1730688347171,-546.862534,0.00031792,2]
[341222559,1730688347195,-546.862534,0.00032477,2]
[341222560,1730688347216,-187.60763316,0.00032519,2]
[341222561,1730688351099,-212.39236684,0.00032519,2]
[341222562,1730688351120,-500.0,0.0003252,120]
[341222563,1730688351140,-315.78522797,0.0003252,120]
[341222565,1730688439123,-184.21477203,0.0003252,120]
[341222566,1730688439145,-500.0,0.0003252,120]
[341222567,1730688439166,-300.53,0.0003252,120]
[341222568,1730688439187,-212.26878772,0.00032776,2]
[341222569,1730688439208,-157.17,0.00032866,2]
[341222570,1730688439228,-221.50685625,0.00032875,2]
[341222571,1730688439250,-888.7139786,0.00032875,2]
[341222572,1730688439270,-150.98937047,0.00032876,4]
[341222573,1730688441107,-349.01062953,0.00032876,4]
[341222574,1730688441129,-46.38408521,0.00032876,4]
[341222575,1730688448131,-329.41091157,0.00032876,4]
[341222576,1730688546088,-206.9487834,0.00030398,2]
[341222577,1730688546110,-411.4458396,0.00031035,2]
[341222591,1730688632114,161.7291528,0.00030929,61]
[341222623,1730688638355,-166.13014219,0.00032875,2]
[341222624,1730688638365,-124.20500322,0.00032876,4]
[341222625,1730688638375,-0.26416182,0.00032876,4]
[341222655,1730688643242,-634.86157058,0.00032876,4]
[341222656,1730688643254,-441.82185442,0.00032876,4]
[341222665,1730688799851,166.444465,0.00013973,2]
[341222667,1730689278210,171.511742,0.00013973,2]
[341222668,1730689552638,-151.0,0.0003,120]
[341222669,1730689552660,-151.0,0.0003,120]
[341222670,1730689552682,-169.292538,0.00030602,2]
[341222671,1730689552703,-159.389585,0.00030673,2]
[341222672,1730689552725,-159.389585,0.0003075,2]
[341222673,1730689552745,-159.389585,0.00030826,2]
[341222674,1730689552766,-169.292538,0.00031972,2]
[341222675,1730689552787,-186.0,0.00032408,2]
[341222676,1730689552807,-831.61614768,0.00032776,2]
[341222677,1730689556093,-226.68369942,0.00032776,2]
[341222678,1730689556114,-166.13014219,0.00032875,2]
[341222679,1730689556138,-1035.7644224,0.00032875,2]
[341222680,1730689568061,150.0,0.0002,2]
[341222681,1730689568505,150.0,0.00017,2]
[341222682,1730689568868,150.0,0.00013,2]
[341222683,1730689569479,150.0,0.0001,2]
[341222684,1730689626124,-150.0,0.00024,2]
[341222685,1730689626146,-150.0,0.00027,2]
[341222686,1730689626168,-150.0,0.00031,2]
[341222687,1730689626188,-150.01,0.00032875,2]
[341222688,1730689626211,-1635.32450052,0.00032875,2]
[341222689,1730689635103,-1055.79135097,0.00032875,2]
[341223243,1730689843355,-926.01236623,0.00032776,2]
[341223245,1730689843364,-182.25028437,0.00032875,2]
[341223247,1730689843374,-888.27512194,0.00032875,2]
[341223249,1730689843383,-500.0,0.00032876,7]
[341223251,1730689843392,-500.0,0.00032876,4]
[341223253,1730689843402,-500.0,0.00032876,4]
[341223255,1730689843411,-500.0,0.00032876,4]
[341223257,1730689843420,-500.0,0.00032876,2]
[341223259,1730689843429,-500.0,0.00032876,4]
[341223261,1730689843439,-154.36067001,0.00032876,4]
[341223263,1730689843448,-230.49556275,0.00032876,4]
[341223265,1730689843458,-167.44465658,0.00032876,4]
[341223267,1730689843467,-151.0,0.00032876,7]
[341223269,1730689843477,-157.493849,0.00032876,7]
[341223271,1730689843486,-286.3764177,0.00032876,7]
[341223273,1730689843495,-500.0,0.00032876,4]
[341223275,1730689843505,-505.28432256,0.00032876,4]
[341223277,1730689843514,-190.430985,0.00032876,7]
[341223279,1730689843523,-190.430985,0.00032876,7]
[341223281,1730689843532,-190.430985,0.00032876,7]
[341223283,1730689843542,-190.430985,0.00032876,7]
[341223285,1730689843551,-190.430985,0.00032876,7]
[341223287,1730689843560,-190.430985,0.00032876,7]
[341223289,1730689843575,-190.430985,0.00032876,7]
[341223291,1730689843588,-190.430985,0.00032876,7]
[341223293,1730689843598,-190.430985,0.00032876,7]
[341223295,1730689843608,-190.430985,0.00032876,7]
[341223297,1730689843617,-190.430985,0.00032876,7]
[341223299,1730689843627,-190.430985,0.00032876,7]
[341223301,1730689843636,-190.430985,0.00032876,7]
[341223303,1730689843645,-119.40447453,0.00032876,7]
[341223320,1730689843805,-71.02651047,0.00032876,7]
[341223322,1730689843815,-190.430985,0.00032876,7]
[341223324,1730689843825,-190.430985,0.00032876,7]
[341223326,1730689843835,-108.4008356,0.00032876,7]
[341223329,1730689843847,-82.0301494,0.00032876,7]
[341223330,1730689843856,-190.430985,0.00032876,7]
[341223333,1730689843866,-190.430985,0.00032876,7]
[341223335,1730689843875,-190.430986,0.00032876,7]
[341223337,1730689843884,-32.54453387,0.00032876,7]
[341223554,1730689846368,-118.45546613,0.00032876,7]
[341223555,1730689846378,-151.0,0.00032876,7]
[341223556,1730689846389,-151.0,0.00032876,7]
[341223557,1730689846399,-151.0,0.00032876,7]
[341223558,1730689846410,-151.0,0.00032876,7]
[341223559,1730689846420,-293.065327,0.00032876,7]
[341223560,1730689846431,-308.14534881,0.00032876,4]
[341223561,1730689846441,-151.0,0.00032876,7]
[341223562,1730689846451,-151.0,0.00032876,7]
[341223563,1730689846461,-151.0,0.00032876,7]
[341223564,1730689846471,-151.0,0.00032876,7]
[341223565,1730689846481,-151.0,0.00032876,7]
[341223566,1730689846491,-151.0,0.00032876,7]
[341223567,1730689846500,-151.0,0.00032876,7]
[341223568,1730689846510,-151.0,0.00032876,7]
[341223569,1730689846519,-151.0,0.00032876,7]
[341223570,1730689846529,-151.0,0.00032876,7]
[341223571,1730689846539,-151.0,0.00032876,7]
[341223572,1730689846548,-252.504121,0.00032876,7]
[341223573,1730689846558,-953.130967,0.00032876,7]
[341223574,1730689846567,-31.9698274,0.00032876,7]
[341223575,1730689846636,-412.37050006,0.00032876,7]
[341223576,1730689872170,225.723385,0.0003055,2]
[341223577,1730689872512,225.723385,0.00031235,2]
[341223578,1730689872844,225.723385,0.0003192,2]
[341223579,1730690151398,216.9994967,0.00033521,120]
[341223580,1730690344167,171.511742,0.00013973,2]
[341223585,1730690738111,-164.0,0.00027,2]
[341223586,1730690738134,-164.0,0.00027671,2]
[341223587,1730690738155,-89.38366597,0.00028767,2]
[341223588,1730690747099,-74.61633403,0.00028767,2]
[341223589,1730690747121,-151.0,0.0003,120]
[341223590,1730690747142,-164.0,0.0003,2]
[341223591,1730690747163,-171.0,0.00030205,2]
[341223592,1730690747185,-161.457437,0.00030217,2]
[341223593,1730690747207,-278.77635429,0.00030328,2]
[341223598,1730690837104,-161.457437,0.00030368,2]
[341223599,1730690837126,-2544.34251011,0.00030636,2]
[341223608,1730690893044,3428.63928033,0.000167,2]
[341223609,1730690900704,214.48604957,0.000123,2]
[341223611,1730690928037,1750.419999,0.00033521,120]
[341223614,1730690950131,-69145.6223034,0.00022,30]
[341223615,1730690951118,-73829.49013574,0.00022,30]
[341223616,1730690955127,-4228.33237163,0.00022,30]
[341223617,1730690965369,-40460.30377608,0.00022,30]
[341223618,1730690967130,-5838.69996139,0.00030636,2]
[341223619,1730690969105,-164.0,0.00032219,2]
[341223706,1730691215437,3656.63,0.00033511,30]
[341223708,1730691432084,179.825754,0.00013973,2]
[341223710,1730691930148,-273.0,0.00027,2]
[341223711,1730691930170,-202.842514,0.00027682,2]
[341223712,1730691930191,-615.1006846,0.00028023,2]
[341223713,1730691930210,-2010.56938521,0.00028033,2]
[341223715,1730691937124,-301.28658649,0.00028033,2]
[341223716,1730691937146,-250.0,0.00028161,2]
[341223717,1730691937167,-300.0,0.00028414,2]
[341223718,1730691937190,-220.99484367,0.00028414,2]
[341223719,1730692025467,342.4581209,0.0001,2]
[341223721,1730692044133,-154.48937784,0.00028315,2]
[341223722,1730692044154,-206.92969078,0.00028397,2]
[341223723,1730692048111,-2239.46203722,0.00028397,2]
[341223724,1730692048132,-3000.0,0.00028415,2]
[341223725,1730692048152,-204.394002,0.00028467,2]
[341223726,1730692048174,-162.963763,0.000286,2]
[341223727,1730692048195,-300.0,0.0002908,2]
[341223728,1730692048217,-300.0,0.0002908,2]
[341223729,1730692048238,-2446.391728,0.00029081,2]
[341223730,1730692048259,-2446.391728,0.00029766,2]
[341223731,1730692048279,-1000.0,0.000298,2]
[341223732,1730692048299,-205.44158,0.000299,120]
[341223733,1730692048319,-158.79,0.0003,2]
[341223734,1730692048339,-151.0,0.0003,120]
[341223735,1730692048360,-151.0,0.0003,120]
[341223736,1730692048379,-164.0,0.0003,2]
[341223737,1730692048400,-196.63488436,0.00030137,2]
[341223738,1730692048421,-500.0,0.00030478,2]
[341223739,1730692048441,-500.0,0.00030478,2]
[341223740,1730692048462,-515.41632243,0.00030478,2]
[341223741,1730692048485,-5000.0,0.00030479,2]
[341223742,1730692048506,-164.20908112,0.0003048,2]
[341223743,1730692048529,-188.56512925,0.0003048,2]
[341223744,1730692048551,-4576.49745202,0.0003048,2]
[341223745,1730692048573,-24900.0,0.00030481,2]
[341223746,1730692048594,-186.78491261,0.00030493,2]
[341223747,1730692048616,-1071.57880103,0.00030593,2]
[341223748,1730692048638,-164.148819,0.00030793,2]
[341223749,1730692048659,-1000.0,0.000308,7]
[341223750,1730692048681,-164.148819,0.00030815,2]
[341223751,1730692048703,-164.148819,0.00030837,2]
[341223752,1730692048724,-164.148819,0.00030859,2]
[341223753,1730692048746,-164.148819,0.00030881,2]
[341223754,1730692048767,-164.148819,0.00030903,2]
[341223755,1730692048788,-164.148819,0.00030925,2]
[341223756,1730692048810,-164.148819,0.00030947,2]
[341223757,1730692048832,-168.137,0.0003127,30]
[341223758,1730692048855,-420.0,0.00031372,2]
[341223759,1730692048875,-202.842514,0.00031455,2]
[341223760,1730692048900,-1000.0,0.000318,8]
[341223761,1730692048920,-251.297,0.00031816,2]
[341223762,1730692048942,-531.468,0.00031816,2]
[341223763,1730692048964,-999.0,0.00031945,120]
[341223764,1730692048986,-372.0,0.00031989,2]
[341223765,1730692049007,-1071.57880097,0.00032208,2]
[341223766,1730692049028,-163.7546425,0.00032329,2]
[341223767,1730692049050,-1000.75394748,0.00032875,2]
[341223768,1730692049071,-284.09790507,0.00032875,2]
[341223769,1730692049092,-1012.81331163,0.00032875,2]
[341223770,1730692049112,-500.0,0.00032876,4]
[341223771,1730692049133,-152.369249,0.00032876,7]
[341223772,1730692049153,-153.018012,0.00032876,7]
[341223773,1730692049174,-500.0,0.00032876,4]
[341223774,1730692049194,-466.20555537,0.00032876,4]
[341223775,1730692051110,-33.79444463,0.00032876,4]
[341223776,1730692051131,-252.78547621,0.00032876,4]
[341223777,1730692051152,-151.0,0.00032876,7]
[341223778,1730692051173,-151.0,0.00032876,7]
[341223779,1730692051193,-151.0,0.00032876,7]
[341223780,1730692051214,-500.0,0.00032876,4]
[341223781,1730692051234,-151.0,0.00032876,7]
[341223782,1730692051254,-151.0,0.00032876,7]
[341223783,1730692051275,-151.0,0.00032876,7]
[341223784,1730692051296,-153.542112,0.00032876,7]
[341223785,1730692051317,-151.0,0.00032876,7]
[341223786,1730692051339,-151.0,0.00032876,7]
[341223787,1730692051368,-151.0,0.00032876,7]
[341223788,1730692051389,-500.0,0.00032876,4]
[341223789,1730692051409,-151.0,0.00032876,7]
[341223790,1730692051430,-151.0,0.00032876,7]
[341223791,1730692051450,-500.0,0.00032876,4]
[341223792,1730692051470,-500.0,0.00032876,4]
[341223793,1730692051490,-500.0,0.00032876,4]
[341223794,1730692051511,-233.360002,0.00032876,7]
[341223795,1730692051533,-74.72818765,0.00032876,7]
[341223796,1730692149135,-229.34473882,0.00030137,2]
[341223797,1730692149155,-162.9637635,0.00031062,2]
[341223798,1730692149178,-773.8206275,0.00031116,2]